[Event "Polofinale MCR junioru 2023"]
[Site "Czech Republic"]
[Date "2023.11.12"]
[Round "2.5"]
[White "Rousek, Jan"]
[Black "Bokhnak, Timofey"]
[Result "1/2-1/2"]
[TimeControl "90 min per 40 moves + 15 min + 30 sec / move from move 1"]
[WhiteFideId "386669"]
[BlackFideId "14172976"]
[WhiteElo "2006"]
[BlackElo "2210"]

1. d4 {[%clk 01:30:47]} {[%emt 00:00:12]} Nf6 {[%clk 01:30:47]} {[%emt
00:00:15]} 2. c4 {[%clk 01:31:01]} {[%emt 00:00:15]} e6 {[%clk 01:31:10]}
{[%emt 00:00:07]} 3. g3 {[%clk 01:31:18]} {[%emt 00:00:11]} d5 {[%clk
01:31:36]} {[%emt 00:00:06]} 4. Bg2 {[%clk 01:31:24]} {[%emt 00:00:23]} Be7
{[%clk 01:31:52]} {[%emt 00:00:15]} 5. Nf3 {[%clk 01:31:31]} {[%emt 00:00:21]}
O-O {[%clk 01:32:00]} {[%emt 00:00:24]} 6. O-O {[%clk 01:31:45]} {[%emt
00:00:15]} Nbd7 {[%clk 01:32:08]} {[%emt 00:00:22]} 7. b3 {[%clk 01:28:34]}
{[%emt 00:03:40]} a5 {[%clk 01:28:40]} {[%emt 00:03:29]} 8. Nbd2 {[%clk
01:18:41]} {[%emt 00:10:22]} c6 {[%clk 01:20:51]} {[%emt 00:08:51]} 9. Qc2
{[%clk 01:05:08]} {[%emt 00:14:01]} b5 {[%clk 01:09:33]} {[%emt 00:11:50]} 10.
e4 {[%clk 00:57:33]} {[%emt 00:08:04]} bxc4 {[%clk 01:03:26]} {[%emt 00:06:38]}
11. bxc4 {[%clk 00:57:21]} {[%emt 00:00:41]} dxc4 {[%clk 01:02:49]} {[%emt
00:01:07]} 12. Nxc4 {[%clk 00:56:33]} {[%emt 00:01:18]} Ba6 {[%clk 01:03:14]}
{[%emt 00:00:07]} 13. Re1 {[%clk 00:55:57]} {[%emt 00:01:01]} c5 {[%clk
00:58:47]} {[%emt 00:05:00]} 14. dxc5 {[%clk 00:35:56]} {[%emt 00:20:31]} Bxc5
{[%clk 00:58:25]} {[%emt 00:00:52]} 15. e5 {[%clk 00:08:48]} {[%emt 00:27:38]}
Ng4 {[%clk 00:55:44]} {[%emt 00:03:12]} 16. Ne3 {[%clk 00:08:31]} {[%emt
00:00:45]} Bxe3 {[%clk 00:52:44]} {[%emt 00:03:31]} 17. Bxe3 {[%clk 00:08:30]}
{[%emt 00:00:31]} Rc8 {[%clk 00:52:28]} {[%emt 00:00:47]} 18. Qe4 {[%clk
00:07:07]} {[%emt 00:01:48]} Nxe3 {[%clk 00:49:10]} {[%emt 00:03:52]} 19. Qxe3
{[%clk 00:07:30]} {[%emt 00:00:07]} Bb7 {[%clk 00:47:41]} {[%emt 00:01:59]} 20.
Red1 {[%clk 00:06:50]} {[%emt 00:01:09]} Bd5 {[%clk 00:46:32]} {[%emt
00:01:41]} 21. Nd4 {[%clk 00:06:15]} {[%emt 00:01:02]} Bxg2 {[%clk 00:43:08]}
{[%emt 00:03:57]} 22. Kxg2 {[%clk 00:06:38]} {[%emt 00:00:06]} Qc7 {[%clk
00:42:58]} {[%emt 00:00:40]} 23. Rac1 {[%clk 00:06:13]} {[%emt 00:00:56]} Qb7+
{[%clk 00:39:36]} {[%emt 00:03:52]} 24. Qf3 {[%clk 00:05:33]} {[%emt 00:01:08]}
Qxf3+ {[%clk 00:33:32]} {[%emt 00:06:35]} 25. Nxf3 {[%clk 00:06:01]} {[%emt
00:00:02]} Nb6 {[%clk 00:33:34]} {[%emt 00:00:28]} 26. Rb1 {[%clk 00:02:00]}
{[%emt 00:04:29]} Nd5 {[%clk 00:33:02]} {[%emt 00:01:04]} 27. Rdc1 {[%clk
00:00:43]} {[%emt 00:01:47]} h6 {[%clk 00:31:16]} {[%emt 00:02:17]} 28. Nd4
{[%clk 00:00:40]} {[%emt 00:00:31]} Nb4 {[%clk 00:31:26]} {[%emt 00:00:21]} 29.
Rxc8 {[%clk 00:00:45]} {[%emt 00:00:25]} Rxc8 {[%clk 00:31:55]} {[%emt
00:00:01]} 30. a3 {[%clk 00:01:00]} {[%emt 00:00:16]} Nd3 {[%clk 00:32:22]}
{[%emt 00:00:03]} 31. Rb5 {[%clk 00:00:52]} {[%emt 00:00:36]} Rc4 {[%clk
00:32:45]} {[%emt 00:00:08]} 32. Nb3 {[%clk 00:00:36]} {[%emt 00:00:47]} a4
{[%clk 00:33:13]} {[%emt 00:00:01]} 33. Nd2 {[%clk 00:00:46]} {[%emt 00:00:18]}
Rc3 {[%clk 00:32:28]} {[%emt 00:01:16]} 34. Kf1 {[%clk 00:00:42]} {[%emt
00:00:34]} Rxa3 {[%clk 00:31:31]} {[%emt 00:01:28]} 35. Ke2 {[%clk 00:00:57]}
{[%emt 00:00:14]} Nc1+ {[%clk 00:30:49]} {[%emt 00:01:13]} 36. Kd1 {[%clk
00:01:13]} {[%emt 00:00:14]} Nb3 {[%clk 00:30:56]} {[%emt 00:00:23]} 37. Nxb3
{[%clk 00:00:49]} {[%emt 00:00:55]} axb3 {[%clk 00:30:43]} {[%emt 00:00:43]} 38.
Kd2 {[%clk 00:00:38]} {[%emt 00:00:40]} Ra2+ {[%clk 00:30:34]} {[%emt
00:00:39]} 39. Ke3 {[%clk 00:00:49]} {[%emt 00:00:19]} Rb2 {[%clk 00:30:25]}
{[%emt 00:00:40]} 40. Rb7 {[%clk 00:00:34]} {[%emt 00:00:45]} Rb1 {[%clk
00:30:33]} {[%emt 00:00:21]} 41. Kf3 {[%clk 00:08:21]} {[%emt 00:08:13]} b2
{[%clk 00:45:41]} {[%emt 00:00:53]} 42. Kg2 {[%clk 00:07:45]} {[%emt 00:01:05]}
Re1 {[%clk 00:45:37]} {[%emt 00:00:33]} 43. Rxb2 {[%clk 00:07:59]} {[%emt
00:00:18]} Rxe5 {[%clk 00:46:05]} {[%emt 00:00:03]} 44. Rb7 {[%clk 00:07:33]}
{[%emt 00:00:55]} h5 {[%clk 00:44:46]} {[%emt 00:01:48]} 45. h4 {[%clk
00:07:22]} {[%emt 00:00:41]} Rd5 {[%clk 00:44:21]} {[%emt 00:00:55]} 46. Ra7
{[%clk 00:06:53]} {[%emt 00:00:59]} Kf8 {[%clk 00:44:30]} {[%emt 00:00:22]} 47.
Rb7 {[%clk 00:06:46]} {[%emt 00:00:36]} Ke8 {[%clk 00:45:00]} {[%emt 00:00:02]}
48. Ra7 {[%clk 00:06:44]} {[%emt 00:00:31]} Rd7 {[%clk 00:45:28]} {[%emt
00:00:02]} 49. Ra5 {[%clk 00:07:04]} {[%emt 00:00:09]} g6 {[%clk 00:45:54]}
{[%emt 00:00:05]} 50. Rb5 {[%clk 00:07:01]} {[%emt 00:00:32]} Ke7 {[%clk
00:46:17]} {[%emt 00:00:08]} 51. Ra5 {[%clk 00:06:48]} {[%emt 00:00:42]} Kf6
{[%clk 00:46:33]} {[%emt 00:00:15]} 52. Ra6 {[%clk 00:06:54]} {[%emt 00:00:23]}
Kf5 {[%clk 00:45:50]} {[%emt 00:01:13]} 53. Ra4 {[%clk 00:06:34]} {[%emt
00:00:50]} e5 {[%clk 00:45:58]} {[%emt 00:00:23]} 54. Ra5 {[%clk 00:06:51]}
{[%emt 00:00:13]} Ke6 {[%clk 00:46:02]} {[%emt 00:00:25]} 55. Ra4 {[%clk
00:05:23]} {[%emt 00:01:57]} f5 {[%clk 00:45:31]} {[%emt 00:01:03]} 56. Rb4
{[%clk 00:04:35]} {[%emt 00:01:16]} Rd6 {[%clk 00:45:53]} {[%emt 00:00:10]} 57.
Ra4 {[%clk 00:03:18]} {[%emt 00:01:47]} Kf6 {[%clk 00:46:01]} {[%emt 00:00:22]}
58. Ra8 {[%clk 00:03:20]} {[%emt 00:00:27]} e4 {[%clk 00:43:01]} {[%emt
00:03:31]} 59. Rb8 {[%clk 00:01:56]} {[%emt 00:01:53]} Ke5 {[%clk 00:41:36]}
{[%emt 00:01:55]} 60. Rb5+ {[%clk 00:01:50]} {[%emt 00:00:35]} Kd4 {[%clk
00:41:53]} {[%emt 00:00:13]} 61. Rb3 {[%clk 00:01:29]} {[%emt 00:00:53]} Rf6
{[%clk 00:37:40]} {[%emt 00:04:43]} 62. Ra3 {[%clk 00:01:17]} {[%emt 00:00:43]}
f4 {[%clk 00:36:58]} {[%emt 00:01:11]} 63. Ra4+ {[%clk 00:01:39]} {[%emt
00:00:09]} Kd3 {[%clk 00:37:23]} {[%emt 00:00:04]} 64. Ra3+ {[%clk 00:01:40]}
{[%emt 00:00:29]} Kd2 {[%clk 00:37:45]} {[%emt 00:00:07]} 65. Ra2+ {[%clk
00:01:39]} {[%emt 00:00:32]} Kc3 {[%clk 00:38:01]} {[%emt 00:00:11]} 66. Ra4
{[%clk 00:00:33]} {[%emt 00:01:39]} f3+ {[%clk 00:35:45]} {[%emt 00:02:45]} 67.
Kg1 {[%clk 00:00:40]} {[%emt 00:00:23]} Re6 {[%clk 00:35:42]} {[%emt 00:00:33]}
68. Ra3+ {[%clk 00:00:58]} {[%emt 00:00:13]} Kd4 {[%clk 00:34:36]} {[%emt
00:01:36]} 69. Ra4+ {[%clk 00:01:23]} {[%emt 00:00:05]} Ke5 {[%clk 00:35:00]}
{[%emt 00:00:06]} 70. Ra5+ {[%clk 00:01:44]} {[%emt 00:00:09]} Kf6 {[%clk
00:35:28]} {[%emt 00:00:02]} 71. Ra4 {[%clk 00:01:42]} {[%emt 00:00:33]} g5
{[%clk 00:34:30]} {[%emt 00:01:27]} 72. hxg5+ Kxg5 {[%clk 00:34:59]} 73. Kf1
{[%clk 00:00:37]} {[%emt 00:00:32]} h4 {[%clk 00:32:17]} {[%emt 00:03:12]} 74.
gxh4+ {[%clk 00:00:48]} {[%emt 00:00:18]} Kxh4 {[%clk 00:32:46]} {[%emt
00:00:01]} 75. Ke1 {[%clk 00:00:55]} {[%emt 00:00:22]} Kg4 {[%clk 00:33:02]}
{[%emt 00:00:15]} 76. Kd2 {[%clk 00:00:42]} {[%emt 00:00:44]} Kf4 {[%clk
00:33:25]} {[%emt 00:00:07]} 77. Rd4 {[%clk 00:01:01]} {[%emt 00:00:10]} Ra6
{[%clk 00:33:23]} {[%emt 00:00:32]} 78. Rd8 {[%clk 00:01:16]} {[%emt 00:00:14]}
Ra2+ {[%clk 00:33:35]} {[%emt 00:00:20]} 79. Ke1 {[%clk 00:01:40]} {[%emt
00:00:06]} Ra5 {[%clk 00:32:11]} {[%emt 00:01:54]} 80. Rf8+ {[%clk 00:01:50]}
{[%emt 00:00:19]} Ke5 {[%clk 00:32:35]} {[%emt 00:00:06]} 81. Re8+ {[%clk
00:01:58]} {[%emt 00:00:22]} Kd4 {[%clk 00:33:00]} {[%emt 00:00:05]} 82. Rd8+
{[%clk 00:01:54]} {[%emt 00:00:33]} Kc4 {[%clk 00:32:29]} {[%emt 00:01:02]} 83.
Rc8+ {[%clk 00:00:46]} {[%emt 00:01:39]} Rc5 {[%clk 00:32:58]} 84. Re8 {[%clk
00:00:51]} {[%emt 00:00:20]} Kd3 {[%clk 00:33:22]} {[%emt 00:00:11]} 85. Rd8+
{[%clk 00:01:12]} {[%emt 00:00:09]} Kc3 {[%clk 00:33:45]} {[%emt 00:00:07]} 86.
Re8 {[%clk 00:00:58]} {[%emt 00:00:40]} Rc4 {[%clk 00:33:20]} {[%emt 00:01:00]}
87. Rd8 {[%clk 00:00:42]} {[%emt 00:00:45]} Kc2 {[%clk 00:32:25]} {[%emt
00:01:25]} 88. Re8 {[%clk 00:00:45]} {[%emt 00:00:28]} Rc5 {[%clk 00:31:36]}
{[%emt 00:01:19]} 89. Re7 {[%clk 00:00:38]} {[%emt 00:00:37]} Rc8 {[%clk
00:31:41]} {[%emt 00:00:26]} 90. Rd7 {[%clk 00:00:40]} {[%emt 00:00:27]} Kc3
{[%clk 00:29:55]} {[%emt 00:02:15]} 91. Re7 {[%clk 00:00:44]} {[%emt 00:00:28]}
Rc4 {[%clk 00:29:31]} {[%emt 00:00:54]} 92. Re8 {[%clk 00:01:04]} {[%emt
00:00:09]} Kd3 {[%clk 00:29:56]} {[%emt 00:00:04]} 93. Rd8+ {[%clk 00:01:25]}
{[%emt 00:00:10]} Rd4 {[%clk 00:30:25]} {[%emt 00:00:01]} 94. Re8 {[%clk
00:01:33]} {[%emt 00:00:18]} Rd7 {[%clk 00:29:50]} {[%emt 00:01:09]} 95. Ra8
{[%clk 00:01:03]} {[%emt 00:00:58]} Kc3 {[%clk 00:28:58]} {[%emt 00:01:22]} 96.
Rc8+ {[%clk 00:01:24]} {[%emt 00:00:10]} Kd4 {[%clk 00:29:26]} {[%emt
00:00:03]} 97. Re8 {[%clk 00:01:35]} {[%emt 00:00:18]} Rd6 {[%clk 00:28:43]}
{[%emt 00:01:14]} 98. Kd2 {[%clk 00:01:09]} {[%emt 00:00:54]} Rd7 {[%clk
00:27:37]} {[%emt 00:01:38]} 99. Ke1 {[%clk 00:01:33]} {[%emt 00:00:06]} Rd6
{[%clk 00:27:49]} {[%emt 00:00:18]} 100. Kd2 {[%clk 00:01:50]} {[%emt
00:00:11]} Ra6 {[%clk 00:28:13]} {[%emt 00:00:07]} 101. Rd8+ {[%clk 00:02:05]}
{[%emt 00:00:15]} Ke5 {[%clk 00:28:35]} {[%emt 00:00:09]} 102. Re8+ {[%clk
00:02:08]} {[%emt 00:00:26]} Re6 {[%clk 00:28:52]} {[%emt 00:00:13]} 103. Ra8
{[%clk 00:01:51]} {[%emt 00:00:47]} Rd6+ {[%clk 00:29:08]} {[%emt 00:00:16]}
104. Ke1 {[%clk 00:01:57]} {[%emt 00:00:21]} Rd5 {[%clk 00:28:04]} {[%emt
00:01:36]} 105. Re8+ {[%clk 00:02:03]} {[%emt 00:00:24]} Kf4 {[%clk 00:28:30]}
{[%emt 00:00:04]} 106. Rf8+ {[%clk 00:02:16]} {[%emt 00:00:16]} Rf5 {[%clk
00:28:48]} {[%emt 00:00:13]} 107. Re8 {[%clk 00:02:22]} {[%emt 00:00:20]} Rg5
{[%clk 00:26:45]} {[%emt 00:02:36]} 108. Rf8+ {[%clk 00:02:40]} {[%emt
00:00:12]} Ke5 {[%emt 00:00:35]} 1/2-1/2

[Event "Polofinale MCR junioru 2023"]
[Site "Czech Republic"]
[Date "2023.11.12"]
[Round "2.6"]
[White "Andrle, Filip"]
[Black "Vilimek, Vit"]
[Result "0-1"]
[TimeControl "90 min per 40 moves + 15 min + 30 sec / move from move 1"]
[WhiteFideId "23718749"]
[BlackFideId "23718218"]
[WhiteElo "2005"]
[BlackElo "2163"]

1. e4 {[%clk 01:30:50]} {[%emt 00:00:09]} c5 {[%clk 01:26:53]} {[%emt
00:04:07]} 2. c4 {[%clk 01:30:01]} {[%emt 00:01:19]} Nc6 {[%clk 01:26:33]}
{[%emt 00:00:50]} 3. Nc3 {[%clk 01:29:47]} {[%emt 00:00:43]} g6 {[%clk
01:26:56]} {[%emt 00:00:08]} 4. g3 {[%clk 01:29:20]} {[%emt 00:00:57]} Bg7
{[%clk 01:26:54]} {[%emt 00:00:32]} 5. Bg2 {[%clk 01:29:27]} {[%emt 00:00:22]}
e6 {[%clk 01:27:17]} {[%emt 00:00:09]} 6. Nge2 {[%clk 01:28:57]} {[%emt
00:00:59]} Nge7 {[%clk 01:27:38]} {[%emt 00:00:09]} 7. O-O {[%clk 01:29:12]}
{[%emt 00:00:15]} O-O {[%clk 01:27:59]} {[%emt 00:00:09]} 8. d3 {[%clk
01:29:09]} {[%emt 00:00:33]} a6 {[%clk 01:28:05]} {[%emt 00:00:24]} 9. Be3
{[%clk 01:23:07]} {[%emt 00:06:31]} Nd4 {[%clk 01:28:30]} {[%emt 00:00:05]} 10.
Rb1 {[%clk 01:22:38]} {[%emt 00:01:00]} Nec6 {[%clk 01:25:29]} {[%emt
00:03:31]} 11. a3 {[%clk 01:16:22]} {[%emt 00:06:46]} Qa5 {[%clk 01:16:17]}
{[%emt 00:09:42]} 12. b4 {[%clk 01:06:37]} {[%emt 00:10:16]} Qxa3 {[%clk
01:14:03]} {[%emt 00:02:44]} 13. Nxd4 {[%clk 01:03:33]} {[%emt 00:03:33]} cxd4
{[%clk 00:48:16]} {[%emt 00:26:17]} 14. Rb3 {[%clk 01:03:15]} {[%emt 00:00:48]}
Qxb3 {[%clk 00:48:15]} {[%emt 00:00:31]} 15. Qxb3 {[%clk 01:03:37]} {[%emt
00:00:07]} dxc3 {[%clk 00:48:41]} {[%emt 00:00:05]} 16. Rd1 {[%clk 00:54:04]}
{[%emt 00:10:02]} Nd4 {[%clk 00:48:56]} {[%emt 00:00:16]} 17. Bxd4 {[%clk
00:54:12]} {[%emt 00:00:23]} Bxd4 {[%clk 00:49:23]} {[%emt 00:00:02]} 18. e5
{[%clk 00:54:29]} {[%emt 00:00:12]} f6 {[%clk 00:48:58]} {[%emt 00:00:56]} 19.
Rc1 {[%clk 00:38:39]} {[%emt 00:16:20]} fxe5 {[%clk 00:47:46]} {[%emt
00:01:42]} 20. Rxc3 {[%clk 00:33:54]} {[%emt 00:05:14]} Rxf2 {[%clk 00:47:45]}
{[%emt 00:00:32]} 21. Kh1 {[%clk 00:34:09]} {[%emt 00:00:14]} a5 {[%clk
00:46:06]} {[%emt 00:02:10]} 22. Qa3 {[%clk 00:28:01]} {[%emt 00:06:39]} axb4
{[%clk 00:41:16]} {[%emt 00:05:19]} 23. Qxa8 {[%clk 00:26:25]} {[%emt
00:02:06]} bxc3 {[%clk 00:41:44]} {[%emt 00:00:02]} 24. Qa3 {[%clk 00:17:24]}
{[%emt 00:09:31]} c2 {[%clk 00:42:06]} {[%emt 00:00:07]} 25. Qc1 {[%clk
00:17:26]} {[%emt 00:00:29]} Re2 {[%clk 00:42:20]} {[%emt 00:00:15]} 0-1

[Event "Polofinale MCR junioru 2023"]
[Site "Czech Republic"]
[Date "2023.11.12"]
[Round "2.7"]
[White "Fizer, Marek"]
[Black "Pecka, Jan"]
[Result "1/2-1/2"]
[TimeControl "90 min per 40 moves + 15 min + 30 sec / move from move 1"]
[WhiteFideId "391980"]
[BlackFideId "23712520"]
[WhiteElo "2162"]
[BlackElo "1999"]

1. e4 {[%clk 01:30:57]} {[%emt 00:00:02]} e5 {[%clk 01:27:34]} {[%emt
00:03:28]} 2. Nf3 {[%clk 01:31:16]} {[%emt 00:00:10]} Nc6 {[%clk 01:27:53]}
{[%emt 00:00:07]} 3. Bc4 {[%clk 01:31:36]} {[%emt 00:00:14]} Nf6 {[%clk
01:28:09]} {[%emt 00:00:15]} 4. d3 {[%clk 01:31:52]} {[%emt 00:00:13]} Be7
{[%clk 01:28:03]} {[%emt 00:00:37]} 5. O-O {[%clk 01:31:48]} {[%emt 00:00:33]}
O-O {[%clk 01:27:33]} {[%emt 00:01:00]} 6. Re1 {[%clk 01:32:08]} {[%emt
00:00:10]} d6 {[%clk 01:27:49]} {[%emt 00:00:14]} 7. a4 {[%clk 01:32:27]}
{[%emt 00:00:11]} Na5 {[%clk 01:27:57]} {[%emt 00:00:22]} 8. Ba2 {[%clk
01:32:48]} {[%emt 00:00:09]} c5 {[%clk 01:28:05]} {[%emt 00:00:22]} 9. c3
{[%clk 01:32:48]} {[%emt 00:00:29]} h6 {[%clk 01:27:22]} {[%emt 00:01:15]} 10.
Nbd2 {[%clk 01:27:27]} {[%emt 00:05:49]} a6 {[%clk 01:19:15]} {[%emt 00:08:38]}
11. b4 {[%clk 01:04:17]} {[%emt 00:23:40]} Nc6 {[%clk 01:09:37]} {[%emt
00:10:08]} 12. bxc5 {[%clk 01:00:52]} {[%emt 00:03:55]} dxc5 {[%clk 01:09:46]}
{[%emt 00:00:21]} 13. Nc4 {[%clk 01:01:06]} {[%emt 00:00:16]} Qc7 {[%clk
01:09:02]} {[%emt 00:01:14]} 14. Nfxe5 {[%clk 00:50:39]} {[%emt 00:10:58]} Nxe5
{[%clk 01:06:32]} {[%emt 00:03:00]} 15. Bf4 {[%clk 00:50:50]} {[%emt 00:00:18]}
Bd6 {[%clk 01:04:36]} {[%emt 00:02:26]} 16. Nxd6 {[%clk 00:50:43]} {[%emt
00:00:37]} Qxd6 {[%clk 01:05:00]} {[%emt 00:00:06]} 17. d4 {[%clk 00:50:55]}
{[%emt 00:00:17]} cxd4 {[%clk 01:05:00]} {[%emt 00:00:30]} 18. cxd4 {[%clk
00:51:17]} {[%emt 00:00:09]} Nf3+ {[%clk 01:04:39]} {[%emt 00:00:50]} 19. Qxf3
{[%clk 00:51:31]} {[%emt 00:00:16]} Qxd4 {[%clk 01:05:03]} {[%emt 00:00:06]} 20.
e5 {[%clk 00:49:01]} {[%emt 00:03:01]} Nh5 {[%clk 01:01:41]} {[%emt 00:03:52]}
21. Bxh6 {[%clk 00:47:57]} {[%emt 00:01:35]} Bg4 {[%clk 01:02:00]} {[%emt
00:00:11]} 22. Qe3 {[%clk 00:48:15]} {[%emt 00:00:11]} Rad8 {[%clk 01:01:30]}
{[%emt 00:01:00]} 23. Bg5 {[%clk 00:47:12]} {[%emt 00:01:33]} Qxe3 {[%clk
00:59:45]} {[%emt 00:02:14]} 24. Rxe3 {[%clk 00:45:14]} {[%emt 00:02:29]} Rd4
{[%clk 00:57:28]} {[%emt 00:02:47]} 25. h3 {[%clk 00:23:07]} {[%emt 00:22:37]}
Be6 {[%clk 00:46:36]} {[%emt 00:11:22]} 26. Bxe6 {[%clk 00:23:04]} {[%emt
00:00:32]} fxe6 {[%clk 00:47:01]} {[%emt 00:00:06]} 27. g3 {[%clk 00:23:21]}
{[%emt 00:00:13]} g6 {[%clk 00:44:10]} {[%emt 00:03:21]} 28. Rb1 {[%clk
00:20:24]} {[%emt 00:03:28]} Rd2 {[%clk 00:43:50]} {[%emt 00:00:50]} 29. Rf3
{[%clk 00:12:46]} {[%emt 00:08:08]} Rxf3 {[%clk 00:40:25]} {[%emt 00:03:55]} 30.
Bxd2 {[%clk 00:13:00]} {[%emt 00:00:15]} Rd3 {[%clk 00:40:46]} {[%emt
00:00:08]} 31. Bh6 {[%clk 00:13:07]} {[%emt 00:00:23]} Rd7 {[%clk 00:38:32]}
{[%emt 00:02:45]} 32. g4 {[%clk 00:13:15]} {[%emt 00:00:23]} Ng7 {[%clk
00:38:49]} {[%emt 00:00:13]} 33. Rb6 {[%clk 00:13:28]} {[%emt 00:00:16]} Re7
{[%clk 00:38:26]} {[%emt 00:00:52]} 34. Bg5 {[%clk 00:12:52]} {[%emt 00:01:07]}
Rd7 {[%clk 00:38:05]} {[%emt 00:00:51]} 35. f4 {[%clk 00:10:03]} {[%emt
00:03:19]} Kf7 {[%clk 00:38:06]} {[%emt 00:00:30]} 36. Kf2 {[%clk 00:10:25]}
{[%emt 00:00:07]} Ne8 {[%clk 00:37:24]} {[%emt 00:01:12]} 37. f5 {[%clk
00:09:10]} {[%emt 00:01:45]} gxf5 {[%clk 00:37:49]} {[%emt 00:00:06]} 38. gxf5
{[%clk 00:09:34]} {[%emt 00:00:06]} Ng7 {[%clk 00:38:13]} {[%emt 00:00:05]} 39.
Rd6 {[%clk 00:08:22]} {[%emt 00:01:42]} Rc7 {[%clk 00:37:29]} {[%emt 00:01:14]}
40. f6 {[%clk 00:08:40]} {[%emt 00:00:13]} Nf5 {[%clk 00:37:39]} {[%emt
00:00:19]} 41. Rd8 {[%clk 00:09:01]} {[%emt 00:00:09]} Rc2+ {[%clk 00:35:47]}
{[%emt 00:02:22]} 42. Bd2 {[%clk 00:07:49]} {[%emt 00:01:42]} Rb2 {[%clk
00:35:43]} {[%emt 00:00:34]} 43. Kf3 {[%clk 00:05:54]} {[%emt 00:02:24]} Rb3+
{[%clk 00:35:22]} {[%emt 00:00:52]} 44. Kf4 {[%clk 00:05:48]} {[%emt 00:00:35]}
Rxh3 {[%clk 00:34:41]} {[%emt 00:01:12]} 45. Rd7+ {[%clk 00:06:09]} {[%emt
00:00:09]} Kg6 {[%clk 00:33:25]} {[%emt 00:01:47]} 46. f7 {[%clk 00:06:03]}
{[%emt 00:00:36]} Kg7 {[%clk 00:33:32]} {[%emt 00:00:22]} 47. Rxb7 {[%clk
00:01:32]} {[%emt 00:05:01]} Nh6 {[%clk 00:32:58]} {[%emt 00:01:04]} 48. f8=Q+
{[%clk 00:00:41]} {[%emt 00:01:22]} Kxf8 {[%clk 00:33:04]} {[%emt 00:00:23]} 49.
Rb6 {[%clk 00:00:32]} {[%emt 00:00:39]} Rd3 {[%clk 00:31:45]} {[%emt 00:01:49]}
50. Rxe6 {[%clk 00:11:22]} {[%emt 00:05:10]} Rxd2 {[%clk 00:40:46]} {[%emt
00:07:00]} 51. Rxh6 {[%clk 00:11:44]} {[%emt 00:00:07]} Rd4+ {[%clk 00:41:03]}
{[%emt 00:00:13]} 52. Kf5 {[%clk 00:12:08]} {[%emt 00:00:06]} Rxa4 {[%clk
00:41:19]} {[%emt 00:00:15]} 53. Ke6 {[%clk 00:11:24]} {[%emt 00:01:13]} Re4
{[%clk 00:41:43]} {[%emt 00:00:06]} 54. Rh8+ {[%clk 00:11:45]} {[%emt
00:00:09]} Kg7 {[%clk 00:41:59]} {[%emt 00:00:16]} 55. Ra8 {[%clk 00:11:48]}
{[%emt 00:00:26]} Re1 {[%clk 00:39:53]} {[%emt 00:02:36]} 56. Rxa6 {[%clk
00:11:50]} {[%emt 00:00:28]} Kf8 {[%clk 00:39:51]} {[%emt 00:00:33]} 57. Ra8+
{[%clk 00:09:13]} {[%emt 00:03:06]} Kg7 {[%clk 00:39:11]} {[%emt 00:01:10]} 58.
Re8 {[%clk 00:06:34]} {[%emt 00:03:08]} Ra1 {[%clk 00:34:48]} {[%emt 00:04:53]}
59. Rd8 {[%clk 00:03:02]} {[%emt 00:04:02]} Re1 {[%clk 00:34:49]} {[%emt
00:00:30]} 60. Kd6 {[%clk 00:01:50]} {[%emt 00:01:42]} Kf7 {[%clk 00:34:33]}
{[%emt 00:00:45]} 61. Rd7+ {[%clk 00:01:32]} {[%emt 00:00:48]} Ke8 {[%clk
00:32:04]} {[%emt 00:02:59]} 62. Rh7 {[%clk 00:01:52]} {[%emt 00:00:10]} Re2
{[%clk 00:31:46]} {[%emt 00:00:49]} 63. Ke6 {[%clk 00:02:02]} {[%emt 00:00:20]}
Kf8 {[%clk 00:32:10]} {[%emt 00:00:06]} 64. Rf7+ {[%clk 00:01:29]} {[%emt
00:01:03]} Ke8 {[%clk 00:32:18]} {[%emt 00:00:21]} 65. Rc7 {[%clk 00:01:10]}
{[%emt 00:00:49]} Kf8 {[%clk 00:32:35]} {[%emt 00:00:13]} 66. Rf7+ {[%clk
00:01:00]} {[%emt 00:00:40]} 1/2-1/2